bitfinex/quotes_SOLUSD_20241102
["timestamp","ask_amount","ask_price","bid_price","bid_amount"]
[1730581237401,0.6078943,166.79,166.78,38.27686093]
[1730581237600,17.982,166.8,166.79,20.0]
[1730581237601,12.71109451,166.8,166.79,20.0]
[1730581237791,12.71109451,166.8,166.79,31.08222874]
[1730581239703,12.71109451,166.8,166.79,37.07772874]
[1730581240000,12.71109451,166.8,166.79,46.9227874]
[1730581244023,12.71109451,166.8,166.79,35.84055866]
[1730581244200,12.71109451,166.8,166.79,15.84055866]
[1730581245814,12.71109451,166.8,166.79,25.9955]
[1730581254118,12.71109451,166.8,166.78,14.9898]
[1730581254442,12.71109451,166.8,166.78,20.9855]
[1730581254443,23.79332325,166.8,166.78,20.9855]
[1730581254817,12.71109451,166.8,166.78,20.9855]
[1730581256439,12.71109451,166.8,166.78,14.9898]
[1730581263421,23.79332325,166.8,166.76,20.0]
[1730581265933,23.79332325,166.8,166.77,20.9869]
[1730581266121,11.08222874,166.78,166.77,20.9869]
[1730581268222,11.08222874,166.78,166.74,14.9929]
[1730581268422,11.08222874,166.77,166.74,14.9929]
[1730581269719,11.08222874,166.78,166.74,14.9929]
[1730581270319,11.08222874,166.76,166.74,14.9929]
[1730581270520,11.08222874,166.75,166.73,5.9977]
[1730581270719,11.08222874,166.76,166.73,5.9977]
[1730581271322,11.08222874,166.76,166.73,20.992]
[1730581271624,11.08222874,166.75,166.73,20.992]
[1730581272649,11.08222874,166.76,166.73,14.9943]
[1730581273733,11.08222874,166.75,166.73,14.9943]
[1730581274822,11.08222874,166.74,166.73,14.9943]
[1730581277227,11.08222874,166.75,166.73,14.9943]
[1730581281358,11.08222874,166.74,166.73,14.9943]
[1730581281740,23.776884,166.73,166.68,5.9995]
[1730581281946,11.08222874,166.69,166.64,6.0009]
[1730581282141,11.08222874,166.68,166.65,15.0011]
[1730581282336,11.08222874,166.67,166.65,15.0011]
[1730581283359,11.08222874,166.66,166.62,21.0058]
[1730581283573,11.08222874,166.65,166.62,21.0058]
[1730581283850,11.08222874,166.63,166.62,21.0058]
[1730581284845,34.85911274,166.63,166.62,15.0042]
[1730581285036,23.776884,166.62,166.58,15.0076]
[1730581285257,11.08222874,166.59,166.54,30.0226]
[1730581285451,11.08222874,166.58,166.54,30.0226]
[1730581286243,11.08222874,166.58,166.53,21.0172]
[1730581286446,11.08222874,166.58,166.54,20.0]
[1730581287071,11.08222874,166.58,166.53,51.0418]
[1730581287248,11.08222874,166.57,166.53,21.0172]
[1730581289572,11.08222874,166.55,166.53,21.0172]
[1730581290066,11.08222874,166.56,166.53,21.0172]
[1730581290360,11.08222874,166.55,166.53,21.0172]
[1730581291163,11.08222874,166.56,166.53,21.0172]
[1730581291347,11.08222874,166.57,166.53,21.0172]
[1730581292045,11.08222874,166.56,166.53,21.0172]
[1730581292272,11.08222874,166.55,166.53,21.0172]
[1730581292856,11.08222874,166.54,166.53,21.0172]
[1730581293959,11.08222874,166.54,166.5,20.0]
[1730581294259,11.08222874,166.54,166.49,51.0538]
[1730581294966,11.08222874,166.52,166.49,51.0538]
[1730581295663,11.08222874,166.51,166.49,51.0538]
[1730581296050,11.08222874,166.51,166.49,30.0316]
[1730581297652,11.08222874,166.52,166.49,30.0316]
[1730581297962,23.776884,166.54,166.49,41.11382874]
[1730581298150,34.85911274,166.54,166.49,41.11382874]
[1730581298552,11.08222874,166.53,166.49,30.0316]
[1730581300165,11.08222874,166.52,166.49,30.0316]
[1730581301451,34.85911274,166.54,166.49,41.11382874]
[1730581302459,34.85911274,166.54,166.49,62.13602874]
[1730581303363,34.85911274,166.54,166.49,51.0538]
[1730581303569,11.08222874,166.53,166.49,51.0538]
[1730581304749,11.08222874,166.52,166.49,51.0538]
[1730581304952,11.08222874,166.51,166.49,51.0538]
[1730581305166,11.08222874,166.52,166.49,51.0538]
[1730581305471,11.08222874,166.53,166.49,51.0538]
[1730581305768,23.776884,166.52,166.49,45.0475]
[1730581306877,23.776884,166.54,166.5,11.08222874]
[1730581307368,0.2,166.6,166.51,11.08222874]
[1730581307369,11.08222874,166.56,166.51,11.08222874]
[1730581307666,11.08222874,166.57,166.52,62.12702874]
[1730581308971,11.08222874,166.57,166.52,51.0448]
[1730581310758,11.08222874,166.56,166.52,51.0448]
[1730581312569,11.08222874,166.54,166.52,45.0396]
[1730581313274,11.08222874,166.55,166.52,45.0396]
[1730581314258,11.08222874,166.56,166.52,45.0396]
[1730581315358,11.08222874,166.57,166.52,62.12702874]
[1730581319272,11.08222874,166.58,166.53,11.08222874]
[1730581319476,11.08222874,166.59,166.54,11.08222874]
[1730581319776,34.85911274,166.6,166.55,21.0147]
[1730581319974,34.85911274,166.58,166.55,21.0147]
[1730581320158,11.08222874,166.58,166.55,21.0147]
[1730581320367,23.776884,166.58,166.55,21.0147]
[1730581320868,23.776884,166.59,166.55,21.0147]
[1730581321071,11.08222874,166.6,166.55,62.11792874]
[1730581321381,34.85911274,166.6,166.55,62.11792874]
[1730581321757,23.776884,166.6,166.55,62.11792874]
[1730581324072,11.08222874,166.64,166.58,11.08222874]
[1730581324404,11.08222874,166.63,166.57,11.08222874]
[1730581324558,11.08222874,166.62,166.57,11.08222874]
[1730581324763,3.56549649,166.61,166.57,11.08222874]
[1730581325074,11.08222874,166.62,166.57,11.08222874]
[1730581325271,3.56586478,166.61,166.57,11.08222874]
[1730581325581,14.64809352,166.6,166.55,66.8762]
[1730581325882,3.56586478,166.59,166.55,66.8762]
[1730581326382,3.56586478,166.58,166.55,66.8762]
[1730581326572,11.08222874,166.6,166.55,66.8762]
[1730581326771,3.57308549,166.59,166.55,66.8762]
[1730581327077,3.57308549,166.58,166.55,66.8762]
[1730581327277,3.57308549,166.57,166.55,66.8762]
[1730581327475,3.57308549,166.56,166.55,86.8762]
[1730581327674,11.08222874,166.6,166.55,97.95842874]
[1730581327879,3.57760516,166.56,166.55,97.95842874]
[1730581328187,11.08222874,166.6,166.55,97.95842874]
[1730581328481,3.58078709,166.59,166.55,97.95842874]
[1730581328778,3.58078709,166.58,166.55,97.95842874]
[1730581328961,3.58078709,166.57,166.55,97.95842874]
[1730581329162,3.58078709,166.56,166.55,97.95842874]
[1730581334169,3.58078709,166.56,166.55,62.11792874]
[1730581334483,3.58078709,166.56,166.55,71.0357]
[1730581335082,11.08222874,166.6,166.55,71.0357]
[1730581335265,3.58833321,166.56,166.55,71.0357]
[1730581336779,3.58833321,166.56,166.55,82.11792874]
[1730581339975,14.67056195,166.56,166.55,51.0357]
[1730581340880,19.14189595,166.56,166.55,30.021]
[1730581341683,8.05966721,166.56,166.55,30.021]
[1730581342285,11.08222874,166.57,166.55,30.021]
[1730581342482,3.5887996,166.56,166.55,30.021]
[1730581342669,8.0683643,166.56,166.55,30.021]
[1730581343283,8.0683643,166.56,166.52,8.23976807]
[1730581343489,8.0683643,166.55,166.52,8.23976807]
[1730581343784,8.0683643,166.54,166.52,8.23976807]
[1730581343970,11.08222874,166.57,166.52,8.23976807]
[1730581344169,8.07191474,166.56,166.52,8.23976807]
[1730581344381,8.07191474,166.55,166.53,51.0418]
[1730581344568,8.07191474,166.54,166.53,51.0418]
[1730581345475,8.07191474,166.54,166.53,45.0369]
[1730581346087,8.07566082,166.54,166.53,45.0369]
[1730581348581,42.93477356,166.54,166.53,15.0123]
[1730581348891,23.776884,166.53,166.49,15.015]
[1730581349094,11.08222874,166.51,166.49,15.015]
[1730581349487,4.48818045,166.5,166.49,15.015]
[1730581349874,8.07943435,166.5,166.49,15.015]
[1730581352293,8.07943435,166.5,166.47,30.0338]
[1730581352473,3.5912539,166.49,166.47,30.0338]
[1730581352673,11.08222874,166.52,166.47,30.0338]
[1730581352992,8.07791196,166.51,166.47,30.0338]
[1730581353181,8.07791196,166.5,166.47,30.0338]
[1730581353381,11.08222874,166.48,166.46,21.026]
[1730581353794,15.56961012,166.47,166.46,21.026]
[1730581354877,15.56961012,166.47,166.44,30.0402]
[1730581355089,11.08222874,166.45,166.41,21.0323]
[1730581355291,11.08222874,166.45,166.41,51.0785]
[1730581356074,4.48426386,166.44,166.41,45.0693]
[1730581356280,11.08222874,166.44,166.41,45.0693]
[1730581358895,11.08222874,166.45,166.41,45.0693]
[1730581359880,11.08222874,166.45,166.41,51.0785]
[1730581360890,11.08222874,166.44,166.41,51.0785]
[1730581362291,11.08222874,166.45,166.41,45.0693]
[1730581363298,11.08222874,166.44,166.41,45.0693]
[1730581364492,11.08222874,166.45,166.41,45.0693]
[1730581367701,11.08222874,166.44,166.41,45.0693]
[1730581368780,34.85911274,166.43,166.41,45.0693]
[1730581370391,11.08222874,166.45,166.41,45.0693]
[1730581375494,11.08222874,166.44,166.41,45.0693]
[1730581376393,11.08222874,166.45,166.41,45.0693]
[1730581379901,11.08222874,166.45,166.41,51.0785]
[1730581380793,11.08222874,166.44,166.41,51.0785]
[1730581382600,11.08222874,166.44,166.41,45.0693]
[1730581383809,11.08222874,166.46,166.41,56.15152874]
[1730581384313,11.08222874,166.45,166.41,45.0693]
[1730581384904,11.08222874,166.45,166.41,51.0785]
[1730581385982,11.08222874,166.46,166.41,62.16072874]
[1730581386189,11.08222874,166.47,166.42,11.08222874]
[1730581386489,34.85911274,166.48,166.43,11.08222874]
[1730581386801,11.08222874,166.47,166.42,26.80952874]
[1730581387197,11.08222874,166.47,166.43,51.0724]
[1730581388699,11.08222874,166.46,166.43,51.0724]
[1730581389010,11.08222874,166.44,166.43,51.0724]
[1730581389407,11.08222874,166.45,166.43,51.0724]
[1730581390200,11.08222874,166.46,166.43,51.0724]
[1730581392015,11.08222874,166.46,166.43,45.0639]
[1730581394390,11.08222874,166.44,166.41,30.0462]
[1730581394593,11.08222874,166.42,166.41,30.0462]
[1730581399616,34.85911274,166.42,166.41,30.0462]
[1730581400199,23.776884,166.42,166.41,30.0462]
[1730581400921,28.24421799,166.42,166.41,30.0462]
[1730581401317,39.32750843,166.42,166.41,30.0462]
[1730581404427,39.33124121,166.42,166.41,30.0462]
[1730581404615,32.72114094,166.42,166.41,30.0462]
[1730581404812,8.94425694,166.42,166.41,30.0462]
[1730581405005,4.47212847,166.42,166.41,30.0462]
[1730581405206,8.9456035,166.42,166.41,30.0462]
[1730581405604,4.47212847,166.42,166.41,30.0462]
[1730581406503,8.94786114,166.42,166.41,25.0462]
[1730581406920,4.47212847,166.42,166.41,25.0462]
[1730581407711,8.95039588,166.42,166.41,25.0462]
[1730581409024,4.47826741,166.42,166.41,25.0462]
[1730581413530,8.07439076,166.42,166.41,25.0462]
[1730581413826,42.9335035,166.42,166.4,15.024]
[1730581414007,8.07439076,166.41,166.4,15.024]
[1730581414535,34.85911274,166.42,166.4,15.024]
[1730581414721,4.49276281,166.41,166.4,15.024]
[1730581414931,8.08942074,166.41,166.4,15.024]
[1730581416319,19.17164948,166.41,166.4,15.024]
[1730581417332,8.08942074,166.41,166.4,15.024]
[1730581417714,31.86630474,166.41,166.4,15.024]
[1730581418314,27.37322644,166.41,166.4,15.024]
[1730581418527,31.86625799,166.41,166.4,15.024]
[1730581418713,36.35925267,166.41,166.4,15.024]
[1730581419045,31.86622112,166.41,166.4,15.024]
[1730581422041,31.86625837,166.41,166.4,15.024]
[1730581424620,42.94848711,166.41,166.4,15.024]
[1730581425815,23.776884,166.4,166.39,6.0099]
[1730581426033,42.94848711,166.4,166.38,0.6078943]
[1730581426217,42.94848711,166.39,166.38,6.6180943]
[1730581429333,34.85911274,166.39,166.38,6.6180943]
[1730581429550,42.94855747,166.39,166.38,0.6078943]
[1730581429722,48.95706418,166.39,166.38,0.6078943]
[1730581430611,48.95467422,166.39,166.38,0.6078943]
[1730581431036,48.95467422,166.39,166.3,15.0324]
[1730581431037,0.1,166.34,166.3,15.0324]
[1730581431237,23.776884,166.3,166.27,15.0357]
[1730581431447,23.776884,166.28,166.27,15.0357]
[1730581431631,31.86254548,166.28,166.27,15.0357]
[1730581432435,42.94477422,166.28,166.27,15.0357]
[1730581433332,42.93558281,166.28,166.25,6.015]
[1730581433536,23.776884,166.26,166.24,15.0382]
[1730581433720,34.85911274,166.25,166.24,15.0382]
[1730581434127,42.92113075,166.25,166.24,15.0382]
[1730581434340,34.85911274,166.25,166.24,15.0382]
[1730581439148,34.85911274,166.25,166.22,6.0161]
[1730581439353,23.776884,166.22,166.21,6.6242943]
[1730581439529,11.08222874,166.25,166.21,21.6654943]
[1730581439858,23.776884,166.25,166.21,51.7478943]
[1730581440143,34.85911274,166.25,166.21,51.7478943]
[1730581442069,23.776884,166.27,166.23,11.08222874]
[1730581442250,11.08222874,166.28,166.23,11.08222874]
[1730581442432,11.08222874,166.29,166.24,11.08222874]
[1730581442635,11.08222874,166.28,166.23,11.08222874]
[1730581443631,11.08222874,166.28,166.24,51.1306]
[1730581446142,11.08222874,166.29,166.24,56.19752874]
[1730581446353,23.776884,166.28,166.24,56.19752874]
[1730581446653,11.08222874,166.3,166.24,56.19752874]
[1730581446948,6.1114,166.35,166.24,56.19752874]
[1730581446949,11.08222874,166.32,166.27,11.08222874]
[1730581447457,11.08222874,166.31,166.26,11.08222874]
[1730581448238,23.776884,166.3,166.26,11.08222874]
[1730581448444,23.776884,166.3,166.27,21.05]
[1730581449647,23.776884,166.31,166.27,32.13222874]
[1730581449852,34.85911274,166.31,166.27,51.1215]
[1730581453037,22.6762,166.36,166.28,11.08222874]
[1730581453038,11.08222874,166.33,166.28,11.08222874]
[1730581453249,11.08222874,166.34,166.28,11.08222874]
[1730581453449,11.08222874,166.34,166.29,11.08222874]
[1730581454253,23.776884,166.33,166.29,11.08222874]
[1730581455640,23.776884,166.33,166.27,51.1215]
[1730581455641,34.85911274,166.33,166.28,11.08222874]
[1730581456047,34.85911274,166.33,166.27,56.18942874]
[1730581457659,34.85911274,166.33,166.29,51.1153]
[1730581462440,23.776884,166.33,166.29,51.1153]
[1730581462972,23.776884,166.34,166.3,11.08222874]
[1730581463442,3.57075773,166.33,166.31,21.0449]
[1730581463643,23.776884,166.34,166.31,21.0449]
[1730581463842,3.57074105,166.33,166.31,21.0449]
[1730581464151,23.776884,166.34,166.31,21.0449]
[1730581464455,3.57073696,166.33,166.31,21.0449]
[1730581464656,23.776884,166.34,166.31,21.0449]
[1730581464964,34.85911274,166.34,166.29,11.08222874]
[1730581466863,11.08222874,166.37,166.32,11.08222874]
[1730581467075,11.08222874,166.38,166.33,11.08222874]
[1730581467361,11.08222874,166.37,166.32,11.08222874]
[1730581468464,23.776884,166.36,166.32,11.08222874]
[1730581469465,23.776884,166.36,166.33,21.0424]
[1730581472670,23.776884,166.38,166.34,11.08222874]
[1730581472847,4.46252145,166.37,166.34,11.08222874]
[1730581473043,23.776884,166.38,166.34,11.08222874]
[1730581473250,4.46227741,166.37,166.34,11.08222874]
[1730581473470,23.776884,166.38,166.34,11.08222874]
[1730581474049,4.46321329,166.37,166.34,11.08222874]
[1730581474558,23.776884,166.38,166.35,21.0399]
[1730581474758,4.46429301,166.37,166.35,21.0399]
[1730581475062,23.776884,166.38,166.35,21.0399]
[1730581475262,4.46429141,166.37,166.35,21.0399]
[1730581475569,23.776884,166.38,166.35,21.0399]
[1730581475767,4.46514419,166.37,166.35,21.0399]
[1730581475964,23.776884,166.38,166.35,21.0399]
[1730581476267,4.46514802,166.37,166.33,11.08222874]
[1730581476455,34.85911274,166.38,166.33,11.08222874]
[1730581476650,4.46616658,166.37,166.33,11.08222874]
[1730581476856,34.85911274,166.38,166.33,11.08222874]
[1730581477050,4.46616195,166.37,166.33,11.08222874]
[1730581477256,34.85911274,166.38,166.33,11.08222874]
[1730581477459,4.46717912,166.37,166.34,21.0411]
[1730581477764,34.85911274,166.38,166.34,21.0411]
[1730581477951,4.46720097,166.37,166.34,21.0411]
[1730581478151,34.85911274,166.38,166.34,21.0411]
[1730581478356,4.46711956,166.37,166.34,32.12332874]
[1730581478556,23.776884,166.38,166.34,32.12332874]
[1730581478771,4.46820709,166.37,166.34,32.12332874]
[1730581479069,23.776884,166.38,166.34,32.12332874]
[1730581479262,4.46820752,166.37,166.34,32.12332874]
[1730581479582,23.776884,166.38,166.34,32.12332874]
[1730581479583,4.46820752,166.36,166.34,32.12332874]
[1730581479777,4.46820752,166.37,166.34,32.12332874]
[1730581479953,4.46929399,166.36,166.33,11.08222874]
[1730581480155,34.85911274,166.38,166.33,11.08222874]
[1730581480366,4.46949332,166.37,166.33,11.08222874]
[1730581480572,4.46949332,166.36,166.33,11.08222874]
[1730581480771,34.85911274,166.38,166.33,11.08222874]
[1730581480969,4.47042181,166.37,166.33,11.08222874]
[1730581481180,4.47042181,166.36,166.34,21.0411]
[1730581481349,34.85911274,166.38,166.34,21.0411]
[1730581481556,4.47160621,166.37,166.34,21.0411]
[1730581481755,4.47160621,166.36,166.34,21.0411]
[1730581481957,34.85911274,166.38,166.34,21.0411]
[1730581482172,4.47162652,166.37,166.34,21.0411]
[1730581482454,4.47162652,166.36,166.34,21.0411]
[1730581482671,34.85911274,166.38,166.34,21.0411]
[1730581482868,4.4728848,166.37,166.34,21.0411]
[1730581483057,4.4728848,166.36,166.34,21.0411]
[1730581483265,4.47419908,166.35,166.34,21.0411]
[1730581484379,23.776884,166.39,166.34,62.18222874]
[1730581484577,4.4753103,166.38,166.35,11.08222874]
[1730581484876,4.4753103,166.37,166.35,11.08222874]
[1730581485078,4.47537342,166.36,166.35,11.08222874]
[1730581485376,23.776884,166.39,166.35,17.09362874]
[1730581485581,4.47638234,166.38,166.35,62.17922874]
[1730581485874,4.47638234,166.37,166.35,62.17922874]
[1730581486073,4.47638234,166.36,166.35,62.17922874]
[1730581488378,3.24,166.42,166.35,62.17922874]
[1730581488580,15.56012377,166.41,166.36,11.08222874]
[1730581488785,4.47789503,166.4,166.36,11.08222874]
[1730581488953,4.47789503,166.39,166.36,11.08222874]
[1730581489160,4.47789503,166.38,166.36,11.08222874]
[1730581489379,4.47789503,166.37,166.36,17.09322874]
[1730581491586,4.47597226,166.37,166.36,62.17612874]
[1730581492275,11.08222874,166.41,166.36,62.17612874]
[1730581492582,4.47550078,166.4,166.36,62.17612874]
[1730581492790,11.08222874,166.41,166.36,62.17612874]
[1730581492962,4.47549926,166.4,166.36,62.17612874]
[1730581493156,4.47549926,166.39,166.36,62.17612874]
[1730581493379,11.08222874,166.41,166.36,62.17612874]
[1730581493380,4.47549926,166.38,166.36,62.17612874]
[1730581493564,11.08222874,166.41,166.36,62.17612874]
[1730581493765,4.47538265,166.4,166.36,62.17612874]
[1730581493975,4.47538265,166.39,166.36,62.17612874]
[1730581494187,4.47538265,166.38,166.36,62.17612874]
[1730581494387,11.08222874,166.41,166.36,62.17612874]
[1730581494682,4.47558746,166.4,166.36,62.17612874]
[1730581494885,4.47558746,166.39,166.36,62.17612874]
[1730581495186,4.47558746,166.38,166.36,62.17612874]
[1730581495490,4.47558746,166.37,166.36,62.17612874]
[1730581495869,4.47558746,166.4,166.36,62.17612874]
[1730581496063,4.47558746,166.39,166.36,62.17612874]
[1730581496279,4.47558746,166.38,166.36,62.17612874]
[1730581496484,4.47558746,166.37,166.36,62.17612874]
[1730581496689,4.47633151,166.37,166.36,62.17612874]
[1730581496992,11.08222874,166.41,166.36,62.17612874]
[1730581497294,4.47633151,166.4,166.36,62.17612874]
[1730581497477,4.47633151,166.39,166.36,62.17612874]
[1730581497677,4.47633151,166.38,166.36,62.17612874]
[1730581497993,4.47633151,166.37,166.36,62.17612874]
[1730581498794,4.47633151,166.4,166.36,62.17612874]
[1730581498978,4.47633151,166.39,166.36,62.17612874]
[1730581500590,11.08222874,166.41,166.36,62.17612874]
[1730581501765,4.48023514,166.4,166.36,62.17612874]
[1730581501971,4.48023514,166.39,166.36,62.17612874]
[1730581502175,4.48023514,166.38,166.36,62.17612874]
[1730581502493,4.48023514,166.37,166.36,62.17612874]
[1730581502690,4.48098507,166.37,166.36,62.17612874]
[1730581509587,4.48424929,166.37,166.36,62.17612874]
[1730581510489,4.48424929,166.37,166.36,21.0386]
[1730581510693,15.56647803,166.37,166.36,21.0386]
[1730581511977,4.48424929,166.37,166.34,30.0589]
[1730581512181,4.48424929,166.36,166.34,30.0589]
[1730581512499,4.48424929,166.35,166.34,30.0589]
[1730581513079,4.48719532,166.35,166.34,51.1]
[1730581516684,4.48900852,166.35,166.34,51.1]
[1730581520993,4.48900852,166.35,166.34,30.0589]
[1730581521414,15.57123726,166.35,166.31,21.0449]
[1730581521709,15.57123726,166.34,166.31,21.0449]
[1730581521901,4.48900852,166.33,166.31,21.0449]
[1730581522102,4.48900852,166.32,166.31,21.0449]
[1730581523006,4.48900852,166.32,166.31,15.0321]
[1730581523388,15.57123726,166.32,166.31,15.0321]
[1730581524713,4.48900852,166.32,166.31,15.0321]
[1730581527910,11.08222874,166.34,166.31,15.0321]
[1730581528114,4.49487021,166.33,166.31,15.0321]
[1730581528294,4.49487021,166.32,166.31,15.0321]
[1730581530202,4.49487021,166.32,166.31,26.11432874]
[1730581531510,4.49487021,166.32,166.31,15.0321]
[1730581531904,11.08222874,166.35,166.31,15.0321]
[1730581532136,11.08222874,166.35,166.31,21.0449]
[1730581532316,4.49394351,166.34,166.31,21.0449]
[1730581532517,4.49394351,166.33,166.31,21.0449]
[1730581532721,4.49394351,166.32,166.31,21.0449]
[1730581535728,11.08222874,166.36,166.31,21.0449]
[1730581535932,4.49370573,166.35,166.31,21.0449]
[1730581536137,4.49370573,166.34,166.31,21.0449]
[1730581536308,4.49370573,166.33,166.31,21.0449]
[1730581536502,4.49370573,166.32,166.31,21.0449]
[1730581536825,4.49370573,166.32,166.31,32.12712874]
[1730581539013,4.49370573,166.32,166.31,52.12712874]
[1730581543430,11.08222874,166.38,166.31,52.12712874]
[1730581543635,11.08222874,166.38,166.34,11.08222874]
[1730581543813,4.49325528,166.37,166.34,11.08222874]
[1730581544006,4.49325528,166.36,166.33,11.08222874]
[1730581544213,4.49325528,166.35,166.33,11.08222874]
[1730581544522,4.49325528,166.34,166.33,11.08222874]
[1730581546025,4.49325528,166.34,166.33,17.09432874]
[1730581546734,11.08222874,166.38,166.33,17.09432874]
[1730581546935,4.4932128,166.37,166.34,11.08222874]
[1730581547110,4.4932128,166.36,166.34,11.08222874]
[1730581547310,4.4932128,166.35,166.34,11.08222874]
[1730581548540,4.4932128,166.35,166.34,17.09392874]
[1730581549038,4.49339438,166.35,166.34,32.12332874]
[1730581552438,11.08222874,166.39,166.34,15.0294]
[1730581552635,4.49412209,166.38,166.34,15.0294]
[1730581552840,4.49412209,166.37,166.34,15.0294]
[1730581553134,4.49412209,166.36,166.34,15.0294]
[1730581553334,4.49412209,166.35,166.34,15.0294]
[1730581554537,23.776884,166.4,166.34,21.0411]
[1730581554538,11.08222874,166.36,166.34,21.0411]
[1730581554922,4.49490843,166.35,166.34,21.0411]
[1730581555538,4.49490843,166.35,166.34,15.0294]
[1730581557040,15.57713717,166.35,166.34,15.0294]
[1730581557224,15.57713717,166.35,166.32,21.0437]
[1730581557225,23.776884,166.34,166.32,21.0437]
[1730581557424,4.49490843,166.33,166.32,21.0437]
[1730581557628,4.49490843,166.33,166.29,51.1153]
[1730581557942,4.49490843,166.32,166.29,51.1153]
[1730581558141,34.85911274,166.34,166.29,51.1153]
[1730581558323,4.49579938,166.33,166.29,51.1153]
[1730581558527,4.49579938,166.32,166.29,51.1153]
[1730581558736,4.49579938,166.31,166.29,51.1153]
[1730581558933,4.49579938,166.3,166.29,51.1153]
[1730581559339,4.49579938,166.3,166.29,56.18402874]
[1730581561244,4.4946007,166.3,166.29,56.18402874]
[1730581561637,4.4946007,166.3,166.29,62.19752874]
[1730581561838,11.08222874,166.37,166.29,62.19752874]
[1730581562048,4.49462941,166.36,166.32,11.08222874]
[1730581562249,4.49462941,166.35,166.32,11.08222874]
[1730581562551,4.49462941,166.34,166.32,11.08222874]
[1730581562755,4.49462941,166.33,166.32,11.08222874]
[1730581563341,4.49462941,166.33,166.31,11.08222874]
[1730581563539,4.49462941,166.32,166.31,11.08222874]
[1730581563852,4.49462941,166.32,166.31,17.09502874]
[1730581564560,32.94192874,166.38,166.31,17.09502874]
[1730581564856,28.27244522,166.37,166.33,11.08222874]
[1730581565051,4.49541894,166.36,166.33,11.08222874]
[1730581565255,4.49541894,166.35,166.33,11.08222874]
[1730581565446,4.49541894,166.34,166.33,11.08222874]
[1730581565835,4.49541894,166.34,166.33,17.09432874]
[1730581569251,4.49541894,166.34,166.33,37.09432874]
[1730581572058,11.08222874,166.42,166.34,20.0]
[1730581572359,4.49773889,166.41,166.37,11.08222874]
[1730581572560,4.49773889,166.4,166.37,11.08222874]
[1730581572861,4.49773889,166.39,166.37,11.08222874]
[1730581573055,4.49773889,166.38,166.37,17.09282874]
[1730581575240,4.49773889,166.38,166.37,6.0106]
[1730581575765,11.08222874,166.41,166.37,6.0106]
[1730581575945,4.49782375,166.38,166.37,21.0373]
[1730581579965,4.49783698,166.38,166.37,21.0373]
[1730581581465,4.49783698,166.38,166.37,15.0267]
[1730581581765,15.58006572,166.38,166.34,21.0411]
[1730581582064,4.49783698,166.37,166.34,21.0411]
[1730581582247,4.49783698,166.36,166.34,21.0411]
[1730581582448,4.49783698,166.35,166.34,21.0411]
[1730581584166,11.08222874,166.36,166.34,21.0411]
[1730581584350,34.85911274,166.4,166.34,32.12332874]
[1730581584765,34.85911274,166.4,166.35,11.08222874]
[1730581584955,3.59993677,166.39,166.35,11.08222874]
[1730581585156,3.59993677,166.38,166.36,21.0386]
[1730581585361,3.59993677,166.37,166.36,21.0386]
[1730581586371,3.59993677,166.37,166.36,15.0276]
[1730581588272,11.08222874,166.38,166.36,15.0276]
[1730581588598,3.5999457,166.37,166.36,15.0276]
[1730581589173,3.5999457,166.37,166.34,6.0117]
[1730581589352,3.5999457,166.36,166.34,21.0411]
[1730581589547,3.5999457,166.35,166.34,21.0411]
[1730581591783,3.5999457,166.35,166.34,15.0294]
[1730581594680,3.5999457,166.35,166.33,11.08222874]
[1730581594868,3.5999457,166.34,166.33,11.08222874]
[1730581595778,3.60008502,166.34,166.33,11.08222874]
[1730581595987,3.60008502,166.34,166.33,17.09432874]
[1730581597868,3.60008502,166.34,166.33,37.09432874]
[1730581600160,3.59977625,166.34,166.33,82.18532874]
[1730581607176,11.08222874,166.41,166.34,20.0]
[1730581607381,3.60223289,166.4,166.36,11.08222874]
[1730581607687,3.60223289,166.39,166.36,11.08222874]
[1730581607872,3.60223289,166.38,166.36,11.08222874]
[1730581608074,3.60223289,166.37,166.36,11.08222874]
[1730581609593,3.60223289,166.37,166.36,17.09322874]
[1730581611104,3.60285488,166.37,166.36,21.0386]
[1730581612493,3.60285488,166.37,166.36,52.12082874]
[1730581614079,3.60285488,166.37,166.36,32.12082874]
[1730581614279,3.60175518,166.37,166.36,32.12082874]
[1730581616983,3.60024832,166.37,166.36,62.17612874]
[1730581621388,11.08222874,166.41,166.36,62.17612874]
[1730581621595,3.59918848,166.37,166.36,62.17612874]
[1730581621794,3.59918848,166.37,166.36,51.0939]
[1730581622301,3.59918848,166.37,166.36,62.17612874]
[1730581622506,11.08222874,166.41,166.36,62.17612874]
[1730581623505,11.08222874,166.42,166.36,62.17612874]